bitfinex/quotes_BTCUSD_20250522
["timestamp","ask_amount","ask_price","bid_price","bid_amount"]
[1747952474375,0.32784732,111060.0,111050.0,1.33798]
[1747952474868,0.32784732,111060.0,111050.0,1.24208]
[1747952480825,0.32784732,111060.0,111050.0,1.02525882]
[1747952481033,0.32784732,111060.0,111050.0,0.90208]
[1747952481277,0.32784732,111060.0,111050.0,0.63224]
[1747952481485,0.32784732,111060.0,111050.0,3.39278]
[1747952482506,0.32784732,111060.0,111050.0,1.72418]
[1747952483983,0.32784732,111060.0,111050.0,2.11274]
[1747952487813,0.0492,111060.0,111050.0,2.31985292]
[1747952488059,0.00900341,111060.0,111050.0,2.31985292]
[1747952488523,0.0110026,111070.0,111060.0,0.20709427]
[1747952488740,0.002,111070.0,111060.0,4.59201012]
[1747952488995,0.01100276,111070.0,111060.0,4.59201012]
[1747952489453,0.002,111070.0,111060.0,4.59201012]
[1747952489662,0.01100268,111070.0,111060.0,4.59201012]
[1747952490128,0.01200268,111070.0,111060.0,4.59201012]
[1747952490521,0.004,111070.0,111060.0,4.59201012]
[1747952490734,0.01300276,111070.0,111060.0,4.59201012]
[1747952490973,0.004,111070.0,111060.0,4.59201012]
[1747952492595,0.004,111070.0,111060.0,4.61900912]
[1747952495337,0.004,111070.0,111060.0,4.60500912]
[1747952497047,0.0130026,111070.0,111060.0,4.26500912]
[1747952497352,0.004,111070.0,111060.0,4.26500912]
[1747952499474,0.0130026,111070.0,111060.0,4.26500912]
[1747952499686,0.004,111070.0,111060.0,4.26500912]
[1747952504399,0.0275,111070.0,111060.0,4.26500912]
[1747952507118,0.0275,111070.0,111060.0,4.61784912]
[1747952508450,0.25057206,111070.0,111060.0,4.25600555]
[1747952508687,0.34011826,111070.0,111060.0,0.026999]
[1747952508930,0.34011826,111070.0,111060.0,0.649639]
[1747952509155,0.41227159,111070.0,111060.0,0.62264]
[1747952509390,0.41227159,111070.0,111050.0,0.38856]
[1747952509391,0.23660384,111050.0,111040.0,5.096e-05]
[1747952509601,0.3261494,111050.0,111040.0,1.01117096]
[1747952510428,0.3261494,111050.0,111040.0,0.74137096]
[1747952510638,0.3261494,111050.0,111040.0,1.01117096]
[1747952510836,0.3261494,111050.0,111040.0,1.01317096]
[1747952511079,0.3261494,111050.0,111040.0,1.01517096]
[1747952512701,0.3261494,111050.0,111040.0,1.01521096]
[1747952514251,0.3261494,111050.0,111040.0,0.73253096]
[1747952514468,0.3261494,111050.0,111040.0,1.35525096]
[1747952520701,0.3351541,111050.0,111040.0,1.53536623]
[1747952520922,0.3261494,111050.0,111040.0,1.53536623]
[1747952521134,0.3261494,111050.0,111040.0,1.35525096]
[1747952521777,0.3261494,111050.0,111040.0,1.53536623]
[1747952521999,0.3261494,111050.0,111040.0,1.54437199]
[1747952524320,0.3261494,111050.0,111040.0,5.56074699]
[1747952524824,0.3261494,111050.0,111040.0,5.56975267]
[1747952529253,0.0475,111050.0,111040.0,5.56975267]
[1747952529472,0.07451363,111050.0,111040.0,5.58776329]
[1747952529680,0.06550884,111050.0,111040.0,5.58776329]
[1747952529890,0.07451363,111050.0,111040.0,5.58776329]
[1747952530902,0.07451363,111050.0,111040.0,4.96504329]
[1747952531101,0.0565043,111050.0,111040.0,5.58732329]
[1747952531307,0.0233,111050.0,111040.0,5.58732329]
[1747952531713,0.23959888,111060.0,111050.0,0.54711292]
[1747952531714,0.08331533,111060.0,111050.0,0.54711292]
[1747952531872,0.35294372,111060.0,111050.0,4.56348792]
[1747952532082,0.36194786,111060.0,111050.0,4.56348792]
[1747952532383,0.35294429,111060.0,111050.0,4.55448354]
[1747952533021,0.35294429,111060.0,111050.0,4.55548354]
[1747952533243,0.35294429,111060.0,111050.0,4.56448808]
[1747952534766,0.34394048,111060.0,111050.0,4.56448808]
[1747952536514,0.34394048,111060.0,111050.0,4.55548354]
[1747952537825,0.34394048,111060.0,111050.0,4.57349246]
[1747952538045,0.34394048,111060.0,111050.0,4.56448808]
[1747952538274,0.34394048,111060.0,111050.0,4.57349254]
[1747952538484,0.34394048,111060.0,111050.0,4.56448808]
[1747952538696,0.33493659,111060.0,111050.0,4.82532354]
[1747952539310,0.33493659,111060.0,111050.0,3.93854854]
[1747952542220,0.33493659,111060.0,111050.0,3.52754854]
[1747952542442,0.33493659,111060.0,111050.0,2.31084854]
[1747952544205,0.33493659,111060.0,111050.0,0.93754392]
[1747952544447,0.33493659,111060.0,111050.0,0.92284392]
[1747952544707,0.33493659,111060.0,111050.0,0.93184871]
[1747952544911,0.33493659,111060.0,111050.0,0.94085341]
[1747952545384,0.32593253,111060.0,111050.0,1.29325341]
[1747952545605,0.32593253,111060.0,111050.0,1.28819041]
[1747952546399,0.32593253,111060.0,111050.0,1.27918571]
[1747952550298,0.32593253,111060.0,111050.0,1.66774571]
[1747952553338,0.32593253,111060.0,111050.0,1.08196]
[1747952553339,0.31692839,111060.0,111050.0,1.08196]
[1747952553543,0.31692839,111060.0,111050.0,1.3518]
[1747952554129,0.31692839,111060.0,111050.0,0.72956]
[1747952554350,0.31692839,111060.0,111050.0,1.01176]
[1747952554572,0.37404322,111060.0,111050.0,0.74192]
[1747952554784,0.37404322,111060.0,111050.0,1.01176]
[1747952555224,0.18910384,111050.0,111040.0,5.096e-05]
[1747952555440,0.3260494,111050.0,111040.0,0.35241096]
[1747952556545,0.3260494,111050.0,111040.0,0.62225096]
[1747952556758,0.3260494,111050.0,111040.0,0.62325096]
[1747952559366,0.34548188,111050.0,111040.0,0.62329096]
[1747952559576,0.3260494,111050.0,111040.0,0.62329096]
[1747952563789,0.3260494,111050.0,111040.0,1.01189096]
[1747952564871,0.3260494,111050.0,111040.0,1.01137096]
[1747952571429,0.3260494,111050.0,111040.0,0.74153096]
[1747952571640,0.39770289,111050.0,111040.0,0.38965096]
[1747952571894,0.40770289,111050.0,111040.0,0.74153096]
[1747952572084,0.22773149,111030.0,111020.0,0.002]
[1747952572292,0.32628346,111030.0,111020.0,0.36796488]
[1747952573329,0.32628346,111030.0,111020.0,0.63788488]
[1747952573774,0.32628346,111030.0,111020.0,1.02656488]
[1747952573976,0.32628346,111030.0,111020.0,1.02956488]
[1747952574386,0.32628346,111030.0,111020.0,1.03256488]
[1747952574852,0.32628346,111030.0,111020.0,0.41076488]
[1747952575073,0.32628346,111030.0,111020.0,1.03256488]
[1747952580877,0.32628346,111030.0,111020.0,1.02956488]
[1747952581041,0.32628346,111030.0,111020.0,1.02656488]
[1747952581267,0.32728346,111030.0,111020.0,1.02656488]
[1747952581472,0.32828346,111030.0,111020.0,1.02656488]
[1747952583329,0.32828346,111030.0,111020.0,1.01248]
[1747952588134,0.28068346,111030.0,111020.0,1.01248]
[1747952590816,0.30538346,111030.0,111020.0,1.01248]
[1747952592347,0.19816167,111020.0,111010.0,0.36020779]
[1747952592544,0.19816167,111020.0,111010.0,4.90810543]
[1747952593155,0.19816167,111020.0,111010.0,4.91711354]
[1747952593156,0.20716856,111020.0,111010.0,4.91711354]
[1747952593525,0.19816191,111020.0,111010.0,5.19608149]
[1747952593920,0.19816191,111020.0,111010.0,5.58480149]
[1747952594121,0.19816191,111020.0,111010.0,5.58495521]
[1747952594330,0.18915502,111020.0,111010.0,5.58495521]
[1747952595123,0.18915502,111020.0,111010.0,5.57594726]
[1747952595454,0.18915502,111020.0,111010.0,5.60279805]
[1747952595656,0.18915502,111020.0,111010.0,5.57594726]
[1747952596066,0.18014772,111020.0,111010.0,5.56693923]
[1747952596291,0.18014772,111020.0,111010.0,5.22474742]
[1747952598524,0.18014772,111020.0,111010.0,5.21558583]
[1747952599330,0.18014772,111020.0,111010.0,5.55558583]
[1747952599561,0.18014772,111020.0,111010.0,5.366415]
[1747952601215,0.31619328,111020.0,111010.0,1.08008]
[1747952601507,0.31619328,111020.0,111010.0,0.38872]
[1747952601722,0.31619328,111020.0,111010.0,1.01004]
[1747952602127,0.31619328,111020.0,111010.0,0.74008]
[1747952602332,0.31619328,111020.0,111010.0,1.01004]
[1747952603777,0.31619328,111020.0,111010.0,0.38872]
[1747952604042,0.31619328,111020.0,111010.0,1.01004]
[1747952605363,0.31819328,111020.0,111010.0,1.01004]
[1747952615708,0.31819328,111020.0,111010.0,1.19020394]
[1747952615709,0.28070058,111020.0,111010.0,1.19020394]
[1747952615920,0.28070058,111020.0,111010.0,1.01004]
[1747952616148,0.28070058,111020.0,111010.0,1.53921213]
[1747952616586,0.28070058,111020.0,111010.0,1.54822024]
[1747952617263,0.01100681,111020.0,111010.0,5.59101073]
[1747952617474,0.20916881,111020.0,111010.0,4.90322811]
[1747952617699,0.21817619,111020.0,111010.0,4.9122359]
[1747952619010,0.02001379,111020.0,111010.0,4.92124352]
[1747952619288,0.02902101,111020.0,111010.0,4.92124352]
[1747952620183,0.02902101,111020.0,111010.0,4.93578437]
[1747952620184,0.002,111020.0,111010.0,4.93578437]
[1747952620361,0.22122663,111040.0,111030.0,0.52013149]
[1747952620615,0.31077219,111040.0,111030.0,5.15730649]
[1747952620836,0.29667754,111040.0,111030.0,5.17531923]
[1747952621247,0.29667754,111040.0,111030.0,5.18432531]
[1747952621465,0.28867219,111040.0,111030.0,0.34]
[1747952621715,0.24576192,111020.0,111010.0,0.38872]
[1747952621940,0.33530748,111020.0,111010.0,1.01052]
[1747952623158,0.33530748,111020.0,111010.0,1.00952]
[1747952624072,0.33530748,111020.0,111010.0,1.01152]
[1747952624652,0.33530748,111020.0,111010.0,0.39272]
[1747952624995,0.33530748,111020.0,111010.0,1.01352]
[1747952625622,0.33530748,111020.0,111010.0,1.19368394]
[1747952625868,0.02702085,111020.0,111010.0,5.23708254]
[1747952626274,0.02702085,111020.0,111010.0,5.23508254]
[1747952626474,0.22518268,111020.0,111010.0,5.22607492]
[1747952626683,0.22518268,111020.0,111010.0,5.23508271]
[1747952626903,0.22518268,111020.0,111010.0,5.23308271]
[1747952627123,0.22518268,111020.0,111010.0,5.23408271]
[1747952627318,0.21617603,111020.0,111010.0,5.23408271]
[1747952628815,0.2071693,111020.0,111010.0,5.23408271]
[1747952629502,0.19816232,111020.0,111010.0,5.22507492]
[1747952629813,0.18014772,111020.0,111010.0,1.56522]
[1747952629936,0.22614772,111020.0,111010.0,1.53322]
[1747952630152,0.22614772,111020.0,111010.0,1.48692]
[1747952630775,0.22614772,111020.0,111010.0,1.45332]
[1747952632607,0.20294772,111020.0,111010.0,1.63348394]
[1747952632823,0.18014772,111020.0,111010.0,1.64249205]
[1747952633451,0.18014772,111020.0,111010.0,1.63348394]
[1747952633873,0.18014772,111020.0,111010.0,1.64249213]
[1747952634300,0.18014772,111020.0,111010.0,1.46232819]
[1747952634570,0.18014772,111020.0,111010.0,1.64249213]
[1747952636175,0.20364772,111020.0,111010.0,1.64249213]
[1747952637071,0.20364772,111020.0,111010.0,1.37253213]
[1747952637281,0.20364772,111020.0,111010.0,1.64245213]
[1747952637678,0.22564618,111030.0,111020.0,0.34]
[1747952637885,0.22564618,111030.0,111020.0,2.6558]
[1747952638663,0.22564618,111030.0,111020.0,2.4809]
[1747952638862,0.22564618,111030.0,111020.0,1.6035]
[1747952639063,0.22564618,111030.0,111020.0,1.5167]
[1747952639436,0.31719174,111030.0,111020.0,0.34]
[1747952641218,0.31719174,111030.0,111020.0,0.96072]
[1747952641427,0.31719174,111030.0,111010.0,0.38872]
[1747952641428,0.18915494,111020.0,111010.0,0.38872]
[1747952641607,0.3245005,111020.0,111010.0,1.34944]
[1747952643293,0.3245005,111020.0,111010.0,1.35044]
[1747952645777,0.3245005,111020.0,111010.0,1.01052]
[1747952652118,0.3245005,111020.0,111010.0,1.35052]
[1747952655982,0.3245005,111020.0,111010.0,1.08056]
[1747952656194,0.3245005,111020.0,111010.0,1.35052]
[1747952663196,0.3245005,111020.0,111010.0,0.72972]
[1747952663432,0.37496517,111020.0,111010.0,0.74008]
[1747952663648,0.37496517,111020.0,111010.0,0.38972]
[1747952664096,0.37496517,111020.0,111010.0,1.01004]
[1747952664644,0.37596517,111020.0,111010.0,1.00904]
[1747952664936,0.37696517,111020.0,111010.0,1.00904]
[1747952665346,0.37696517,111020.0,111010.0,0.73908]
[1747952665570,0.37696517,111020.0,111010.0,1.00904]
[1747952668859,0.3265005,111020.0,111010.0,1.00904]
[1747952670753,0.3265005,111020.0,111010.0,0.73908]
[1747952670964,0.3265005,111020.0,111010.0,1.00908]
[1747952673148,0.3255005,111020.0,111010.0,1.00908]
[1747952674907,0.3255005,111020.0,111010.0,1.00912]
[1747952674908,0.6665005,111020.0,111010.0,1.00912]
[1747952675148,0.6685005,111020.0,111010.0,1.00912]
[1747952675720,0.75802201,111020.0,111010.0,1.00912]
[1747952677344,0.3285005,111020.0,111010.0,1.00912]
[1747952677541,0.32974064,111020.0,111010.0,1.00912]
[1747952680354,0.32974064,111020.0,111010.0,0.73912]
[1747952680599,0.32974064,111020.0,111010.0,1.00912]
[1747952683399,0.32974064,111020.0,111010.0,0.73912]
[1747952683625,0.4488669,111020.0,111010.0,0.73912]
[1747952683867,0.03604738,110960.0,110950.0,0.61154975]
[1747952684082,0.02703529,110960.0,110950.0,5.64565725]
[1747952684295,0.02703529,110960.0,110950.0,5.6545226]
[1747952684917,0.02703529,110960.0,110950.0,5.0346026]
[1747952685146,0.02703529,110960.0,110950.0,5.6550328]
[1747952685352,0.02803529,110960.0,110950.0,5.6610328]
[1747952685560,0.01001152,110960.0,110950.0,5.6550328]
[1747952685773,0.02803521,110960.0,110950.0,5.6610328]
[1747952686010,0.02803521,110960.0,110950.0,5.6660328]
[1747952686190,0.02803521,110960.0,110950.0,5.6795289]
[1747952687202,0.02803521,110960.0,110950.0,5.6735289]
[1747952687416,0.02803521,110960.0,110950.0,5.6785289]
[1747952690004,0.01902328,110960.0,110950.0,5.66966355]
[1747952690227,0.02803521,110960.0,110950.0,5.66966355]
[1747952691616,0.01902328,110960.0,110950.0,5.29801875]
[1747952692022,0.01902328,110960.0,110950.0,5.63801875]
[1747952693024,0.02803521,110960.0,110950.0,5.63801875]
[1747952693231,0.01902369,110960.0,110950.0,5.63801875]
[1747952693437,0.01902328,110960.0,110950.0,5.63801875]
[1747952694030,0.02803521,110960.0,110950.0,5.63801875]
[1747952695338,0.02803521,110960.0,110950.0,5.29801875]
[1747952695538,0.02803521,110960.0,110950.0,5.63801875]
[1747952695740,0.01001152,110960.0,110950.0,5.63801875]
[1747952696017,0.0190232,110960.0,110950.0,5.01809875]
[1747952696193,0.0190232,110960.0,110950.0,5.63809875]
[1747952697278,0.01802214,110970.0,110960.0,0.55118091]
[1747952697487,0.40465017,110970.0,110960.0,0.61004]
[1747952698496,0.40465017,110970.0,110960.0,0.61304]
[1747952699027,0.40465017,110970.0,110960.0,0.61604]
[1747952699633,0.40465017,110970.0,110960.0,0.62604]
[1747952700410,0.40465017,110970.0,110960.0,0.356]
[1747952700626,0.40465017,110970.0,110960.0,0.96604]
[1747952702143,0.33249684,110970.0,110960.0,0.96604]
[1747952703394,0.33249684,110970.0,110960.0,0.97445094]
[1747952703862,0.33249684,110970.0,110960.0,0.97449094]
[1747952704769,0.33249684,110970.0,110960.0,0.96608]
[1747952708656,0.19825128,110970.0,110960.0,1.1553373]
[1747952708835,0.19825128,110970.0,110960.0,0.96608]
[1747952712327,0.21995128,110970.0,110960.0,0.96608]
[1747952713144,0.21995128,110970.0,110960.0,1.14632513]
[1747952713375,0.19825128,110970.0,110960.0,1.14632513]
[1747952713596,0.19825128,110970.0,110960.0,1.16434947]
[1747952713847,0.18924017,110970.0,110960.0,1.16434947]
[1747952713983,0.18022889,110970.0,110960.0,1.15533738]
[1747952715750,0.18924033,110970.0,110960.0,1.16434955]
[1747952716177,0.18924033,110970.0,110960.0,1.15533738]
[1747952716396,0.18924033,110970.0,110960.0,0.97509225]
[1747952716570,0.18924033,110970.0,110960.0,1.15533738]
[1747952717050,0.23554033,110970.0,110960.0,1.15533738]
[1747952718860,0.23554033,110970.0,110960.0,0.97509225]
[1747952719733,0.23554033,110970.0,110960.0,0.96608]
[1747952719929,0.23554033,110970.0,110960.0,1.14632513]
[1747952720129,0.23554033,110970.0,110960.0,0.96608]
[1747952720846,0.21284033,110970.0,110960.0,1.14632513]
[1747952721077,0.18924033,110970.0,110960.0,1.15533722]
[1747952721507,0.18924033,110970.0,110960.0,1.14632513]
[1747952721820,0.21194033,110970.0,110960.0,1.14632513]
[1747952722042,0.21194033,110970.0,110960.0,1.15533738]
[1747952722668,0.21194033,110970.0,110960.0,1.16434955]
[1747952722873,0.23494033,110970.0,110960.0,1.16434955]
[1747952723077,0.23494033,110970.0,110960.0,1.15533738]
[1747952723725,0.23494033,110970.0,110960.0,0.97509225]
[1747952723933,0.23494033,110970.0,110960.0,0.96608]
[1747952727459,0.23494033,110970.0,110960.0,1.14632513]
[1747952727716,0.23494033,110970.0,110960.0,0.96608]
[1747952732019,0.23494033,110970.0,110960.0,0.97509225]
[1747952732404,0.23494033,110970.0,110960.0,1.15533738]
[1747952733897,0.23494033,110970.0,110960.0,1.16434955]
[1747952734433,0.23494033,110970.0,110960.0,1.55322955]
[1747952735069,0.23494033,110970.0,110960.0,1.54421738]
[1747952736039,0.05161047,110980.0,110970.0,0.52022889]
[1747952736245,0.23182312,110980.0,110970.0,3.32312889]
[1747952736426,0.22281265,110980.0,110970.0,2.2409]
[1747952736648,0.22281265,110980.0,110970.0,2.1419]
[1747952737072,0.22281265,110980.0,110970.0,2.32212889]
[1747952737481,0.22281265,110980.0,110970.0,2.32312889]
[1747952737829,0.22281265,110980.0,110970.0,2.33414033]
[1747952738277,0.22281265,110980.0,110970.0,2.34315169]
[1747952738494,0.20091265,110980.0,110970.0,2.01216289]
[1747952738716,0.22181265,110980.0,110970.0,2.00315169]
[1747952739568,0.22181265,110980.0,110970.0,2.0121628]
[1747952740529,0.23082312,110980.0,110970.0,2.02117383]
[1747952740901,0.23082312,110980.0,110970.0,2.3521628]
[1747952743011,0.23082312,110980.0,110970.0,2.34315169]
[1747952743218,0.23082312,110980.0,110970.0,2.35216297]
[1747952744627,0.23082312,110980.0,110970.0,2.34315169]
[1747952744830,0.23082312,110980.0,110970.0,2.29195169]
[1747952745035,0.23082312,110980.0,110970.0,2.11485169]
[1747952745213,0.22181265,110980.0,110970.0,1.5616]
[1747952745415,0.22181265,110980.0,110970.0,1.74182889]
[1747952745577,0.22181265,110980.0,110970.0,1.72734033]
[1747952750641,0.22181265,110980.0,110970.0,2.07646033]
[1747952751171,0.22181265,110980.0,110970.0,1.89623144]
[1747952751499,0.22181265,110980.0,110970.0,1.88722]
[1747952752283,0.22181265,110980.0,110970.0,2.07646033]
[1747952753921,0.22181265,110980.0,110970.0,1.88722]
[1747952754130,0.22181265,110980.0,110970.0,0.90282]
[1747952754313,0.22181265,110980.0,110970.0,1.17286]
[1747952755573,0.22181265,110980.0,110970.0,1.5617]
[1747952772824,0.22181265,110980.0,110970.0,1.75094025]
[1747952775493,0.22181265,110980.0,110970.0,1.5617]
[1747952776152,0.22181265,110980.0,110970.0,1.74192889]
[1747952777386,0.22181265,110980.0,110970.0,1.5617]
[1747952777725,0.22181265,110980.0,110970.0,1.74192889]
[1747952778585,0.22181265,110980.0,110970.0,1.75094033]
[1747952779045,0.22181265,110980.0,110970.0,1.75995169]
[1747952780072,0.22181265,110980.0,110970.0,1.41995169]
[1747952780488,0.22181265,110980.0,110970.0,1.5617]
[1747952780659,0.22181265,110980.0,110970.0,1.75094033]
[1747952780861,0.22181265,110980.0,110970.0,1.75995169]
[1747952781077,0.22181265,110980.0,110970.0,1.76896297]
[1747952785158,0.22181265,110980.0,110970.0,1.77797417]
[1747952786137,0.22181265,110980.0,110970.0,1.75995169]
[1747952786338,0.31135821,110980.0,110970.0,1.0804]
[1747952786566,0.31135821,110980.0,110970.0,1.35044]
[1747952786771,0.31135821,110980.0,110970.0,0.73184]
[1747952786983,0.31135821,110980.0,110970.0,1.35044]
[1747952790908,0.31135821,110980.0,110970.0,0.9586]
[1747952791111,0.31135821,110980.0,110970.0,1.00744]
[1747952794165,0.31135821,110980.0,110970.0,1.20569169]
[1747952794678,0.31135821,110980.0,110970.0,1.21470297]
[1747952794884,0.13114556,110980.0,110970.0,1.21470297]
[1747952795105,0.07764105,110980.0,110970.0,1.23272495]
[1747952795331,0.0866516,110980.0,110970.0,1.23272495]
[1747952795716,0.26686425,110980.0,110970.0,1.23272495]
[1747952797290,0.07764105,110980.0,110970.0,1.23272495]
[1747952797519,0.0596202,110980.0,110970.0,5.24909995]
[1747952797745,0.06863058,110980.0,110970.0,5.24909995]
[1747952797925,0.0596202,110980.0,110970.0,5.24909995]
[1747952798065,0.06863067,110980.0,110970.0,5.24909995]
[1747952798270,0.0596202,110980.0,110970.0,5.24909995]
[1747952798472,0.06863058,110980.0,110970.0,5.24909995]
[1747952799563,0.06863058,110980.0,110970.0,5.58909995]
[1747952801850,0.07764105,110980.0,110970.0,5.58909995]
[1747952802473,0.26686425,110980.0,110970.0,5.58909995]
[1747952802924,0.0866516,110980.0,110970.0,5.58909995]
[1747952803812,0.26686425,110980.0,110970.0,5.58008908]
[1747952804032,0.2668649,110980.0,110970.0,5.58910011]
[1747952804682,0.25785468,110980.0,110970.0,5.58910011]
[1747952804895,0.2488443,110980.0,110970.0,5.56206669]
[1747952805116,0.2488443,110980.0,110970.0,5.57107789]
[1747952805569,0.2488443,110980.0,110970.0,5.580089]
[1747952807030,0.2488443,110980.0,110970.0,5.56206669]
[1747952807264,0.23983383,110980.0,110970.0,5.57107789]
[1747952808266,0.22181265,110980.0,110970.0,5.363815]
[1747952808909,0.22181265,110980.0,110970.0,5.54404389]
[1747952809603,0.22181265,110980.0,110970.0,5.56206636]
[1747952810556,0.22181265,110980.0,110970.0,5.55305525]
[1747952810759,0.22181265,110980.0,110970.0,5.56206653]
[1747952812333,0.22181265,110980.0,110970.0,5.55305525]
[1747952812685,0.22181265,110980.0,110970.0,4.02198017]
[1747952813463,0.22181265,110980.0,110970.0,3.41239128]
[1747952813673,0.22181265,110980.0,110970.0,4.03043128]
[1747952813891,0.23082312,110980.0,110970.0,4.03944231]
[1747952815527,0.0416,110980.0,110970.0,4.06299411]
[1747952815738,0.05060998,110980.0,110970.0,4.07200498]
[1747952819098,0.0506099,110980.0,110970.0,4.07200498]
[1747952819511,0.0506099,110980.0,110970.0,4.10376998]
[1747952821954,0.0416,110980.0,110970.0,4.10376998]
[1747952822424,0.0506099,110980.0,110970.0,4.10376998]
[1747952822663,0.0416,110980.0,110970.0,4.10376998]
[1747952823077,0.0416,110980.0,110970.0,4.50376998]
[1747952825191,0.0506099,110980.0,110970.0,4.50376998]
[1747952825948,0.0416,110980.0,110970.0,4.50376998]
[1747952826653,0.0506099,110980.0,110970.0,4.50376998]
[1747952826858,0.0416,110980.0,110970.0,4.50376998]
[1747952830646,0.0506099,110980.0,110970.0,4.50376998]
[1747952830834,0.0416,110980.0,110970.0,4.50376998]
[1747952832323,0.0416,110980.0,110970.0,4.10376998]
[1747952832535,0.0416,110980.0,110970.0,3.76372998]
[1747952832959,0.0416,110980.0,110970.0,4.16372998]
[1747952834057,0.0416,110980.0,110970.0,3.89368998]
[1747952834265,0.0416,110980.0,110970.0,4.16368998]
[1747952834466,0.0416,110980.0,110970.0,4.50368998]
[1747952834666,0.0416,110980.0,110970.0,4.10368998]
[1747952835298,0.0416,110980.0,110970.0,4.50368998]
[1747952835728,0.0416,110980.0,110970.0,4.10368998]
[1747952836699,0.05060998,110980.0,110970.0,3.83368998]
[1747952836922,0.2398335,110980.0,110970.0,1.108565]
[1747952837107,0.2398335,110980.0,110970.0,1.76819389]
[1747952837272,0.2398335,110980.0,110970.0,1.77720525]
[1747952837480,0.2398335,110980.0,110970.0,1.78621645]
[1747952840526,0.2398335,110980.0,110970.0,1.79522756]
[1747952841139,0.2398335,110980.0,110970.0,1.79031335]
[1747952841341,0.2398335,110980.0,110970.0,1.77247359]
[1747952842647,0.24884413,110980.0,110970.0,1.78148454]
[1747952843400,0.05061006,110980.0,110970.0,1.78148454]
[1747952843623,0.05962004,110980.0,110970.0,1.7960249]
[1747952843797,0.0686301,110980.0,110970.0,1.7960249]
[1747952844172,0.05060998,110980.0,110970.0,1.7960249]
[1747952844576,0.05962012,110980.0,110970.0,1.7960249]
[1747952845583,0.05060998,110980.0,110970.0,1.7960249]
[1747952845803,0.05962012,110980.0,110970.0,1.7960249]
[1747952845987,0.05962004,110980.0,110970.0,1.7960249]
[1747952846209,0.06863018,110980.0,110970.0,1.7960249]
[1747952847199,0.05962004,110980.0,110970.0,1.7960249]
[1747952848620,0.0416,110980.0,110970.0,1.7960249]
[1747952848825,0.0506099,110980.0,110970.0,1.7960249]
[1747952849034,0.05961996,110980.0,110970.0,1.7960249]
[1747952850091,0.0506099,110980.0,110970.0,1.7960249]
[1747952850300,0.05961996,110980.0,110970.0,1.7960249]
[1747952851171,0.06863018,110980.0,110970.0,1.7960249]
[1747952851387,0.05961996,110980.0,110970.0,1.7960249]
[1747952851801,0.05961996,110980.0,110970.0,1.1780249]
[1747952852024,0.05961996,110980.0,110970.0,1.7954249]
[1747952853699,0.06863018,110980.0,110970.0,1.7954249]
[1747952853940,0.06863018,110980.0,110970.0,1.8271899]
[1747952854153,0.05961996,110980.0,110970.0,1.8271899]
[1747952854816,0.06863018,110980.0,110970.0,1.8271899]
[1747952856261,0.0686301,110980.0,110970.0,1.8271899]
[1747952856807,0.0686301,110980.0,110970.0,1.5571899]
[1747952856999,0.0686301,110980.0,110970.0,1.8271899]
[1747952857612,0.06863002,110980.0,110970.0,1.8271899]
[1747952857936,0.07764024,110980.0,110970.0,1.8271899]
[1747952858375,0.06863002,110980.0,110970.0,1.8271899]
[1747952859680,0.07764024,110980.0,110970.0,1.8271899]
[1747952861210,0.06863002,110980.0,110970.0,1.8271899]
[1747952861419,0.07764024,110980.0,110970.0,1.8271899]
[1747952861597,0.06863002,110980.0,110970.0,1.8271899]
[1747952862553,0.07764024,110980.0,110970.0,1.8271899]
[1747952862974,0.0416,110980.0,110970.0,1.8271899]
[1747952863191,0.05061006,110980.0,110970.0,1.8271899]
[1747952863407,0.0596202,110980.0,110970.0,1.8271899]
[1747952864168,0.05061006,110980.0,110970.0,1.8271899]
[1747952864368,0.05060998,110980.0,110970.0,1.8271899]
[1747952864791,0.05060998,110980.0,110970.0,1.85404069]
[1747952864992,0.05060998,110980.0,110970.0,1.8271899]
[1747952865845,0.05962012,110980.0,110970.0,1.8271899]
[1747952866338,0.0416,110980.0,110970.0,1.8271899]
[1747952866570,0.0207,110980.0,110970.0,1.8271899]
[1747952866781,0.0207,110980.0,110970.0,1.4871899]
[1747952868067,0.0207,110980.0,110970.0,1.8871899]
[1747952868484,0.0425,110980.0,110970.0,1.8871899]
[1747952874611,0.0425,110980.0,110970.0,1.8554249]
[1747952875329,0.0425,110980.0,110970.0,1.86921918]
[1747952876054,0.0425,110980.0,110970.0,2.20921918]
[1747952881234,0.0425,110980.0,110970.0,1.93921918]
[1747952881486,0.23172255,110980.0,110970.0,1.53921918]
[1747952881706,0.06051996,110980.0,110970.0,1.80921918]
[1747952882349,0.06953018,110980.0,110970.0,1.80921918]
[1747952882554,0.06051996,110980.0,110970.0,1.80921918]
[1747952882767,0.06953018,110980.0,110970.0,1.80921918]
[1747952882974,0.06051996,110980.0,110970.0,1.80921918]
[1747952883187,0.0695301,110980.0,110970.0,1.80921918]
[1747952883359,0.0695301,110980.0,110970.0,1.84098418]
[1747952886652,0.06051996,110980.0,110970.0,1.84098418]
[1747952887797,0.0695301,110980.0,110970.0,1.84098418]
[1747952889610,0.06051996,110980.0,110970.0,1.84098418]
[1747952889778,0.0695301,110980.0,110970.0,1.84098418]
[1747952891608,0.0695301,110980.0,110970.0,1.57098418]
[1747952891795,0.08755079,110980.0,110970.0,1.81264905]
[1747952892034,0.0875507,110980.0,110970.0,1.81264905]
[1747952892235,0.07854032,110980.0,110970.0,1.81264905]
[1747952893921,0.0695301,110980.0,110970.0,1.81264905]
[1747952894126,0.06051996,110980.0,110970.0,1.81264905]
[1747952894337,0.0425,110980.0,110970.0,1.8403731]
[1747952918150,0.0425,110980.0,110970.0,1.5703731]
[1747952918412,0.0425,110980.0,110970.0,1.8403731]
[1747952920133,0.0425,110980.0,110970.0,1.8271899]
[1747952922485,0.05151006,110980.0,110970.0,1.2097899]
[1747952922681,0.06052004,110980.0,110970.0,1.8260299]
[1747952922966,0.06052004,110980.0,110970.0,1.81148905]
[1747952923137,0.06953034,110980.0,110970.0,1.81148905]
[1747952924029,0.06052004,110980.0,110970.0,1.81148905]
[1747952924448,0.06953026,110980.0,110970.0,1.81148905]
[1747952925046,0.06052004,110980.0,110970.0,1.81148905]
[1747952925247,0.06953026,110980.0,110970.0,1.81148905]
[1747952926188,0.06052004,110980.0,110970.0,1.81148905]
[1747952926771,0.06953034,110980.0,110970.0,1.81148905]
[1747952926974,0.06052004,110980.0,110970.0,1.81148905]
[1747952929545,0.06051996,110980.0,110970.0,1.81092905]
[1747952930010,0.24073261,110980.0,110970.0,1.18623818]
[1747952930202,0.0875512,110980.0,110970.0,1.79290748]
[1747952930620,0.07854065,110980.0,110970.0,1.79290748]
[1747952930943,0.26776393,110980.0,110970.0,1.79290748]
[1747952932042,0.26776393,110980.0,110970.0,0.629965]
[1747952932247,0.33027931,110980.0,110970.0,1.21647389]
[1747952932413,0.33027931,110980.0,110970.0,1.22548533]
[1747952932954,0.33027931,110980.0,110970.0,1.23449669]
[1747952934100,0.32126884,110980.0,110970.0,1.23449669]